Cogmind - Beta 12 @@@ ROGUE MODE // 2023.03.10 @ 17:51:31 Player: ArabianSandBoa Result: Destroyed by as-44980 with Assembled F-torch Performance ------------- Evolutions (0) 0 Regions Visited (2) 400 Robots Destroyed (8) 40 Value Destroyed (127) 127 Prototype IDs (2) 40 Alien Tech Used (0) 0 Bonus (0) 0 TOTAL SCORE: 607 Bonus ------- None Cogmind --------- Core Integrity 0/250 Matter 290/300 Energy 100/100 System Corruption 0% Temperature Cool (20) Movement Rolling (90) Location -10/Mines Parts ------- > --- POWER (1) -------- (None) > --- PROPULSION (2) --- Wheel Compact Wheel > --- UTILITY (2) ------ Small Storage Unit Large Storage Unit > --- WEAPON (2) ------- Light Assault Rifle > --- INVENTORY (15) --- Light Ion Engine Light Nuclear Core Fission Core Aluminum Leg Aluminum Leg Wheel Combat Airjet Combat Airjet Combat Airjet Sensor Array Signal Interpreter Improved Terrain Scanner Armor Integrity Analyzer Improved Light Armor Plating Improved Light Armor Plating Peak State ------------ > --- POWER ------------ (None) > --- PROPULSION ------- Wheel Compact Wheel > --- UTILITY ---------- Small Storage Unit Large Storage Unit > --- WEAPON ----------- Light Assault Rifle Rocket Launcher > --- INVENTORY -------- Light Ion Engine Light Nuclear Core Fission Core Aluminum Leg Aluminum Leg Wheel Combat Airjet Combat Airjet Combat Airjet Sensor Array Signal Interpreter Improved Terrain Scanner Armor Integrity Analyzer Improved Light Armor Plating Improved Light Armor Plating [Rating: 11] Favorites ----------- Power Ion Engine Engine Ion Engine Propulsion Light Treads Treads Light Treads Leg Aluminum Leg Wheel Wheel Utility Small Storage Unit Storage Small Storage Unit Weapon Light Assault Rifle Energy Gun EM Pulse Gun Ballistic Gun Light Assault Rifle Launcher Rocket Launcher Build | -11 -10 -10 ------- Run | Jun Mat Min Slots Evolved . | . . . Power . | . . . Propulsion . | . . . Utility . | . . . Weapon . | . . . Parts Attached 14 | . 9 5 Power 1 | . 1 . Engine 1 | . 1 . Core . | . . . Reactor . | . . . Propulsion 7 | . 5 2 Treads 3 | . 3 . Leg . | . . . Wheel 4 | . 2 2 Hover . | . . . Flight . | . . . Utility 1 | . 1 . Device . | . . . Storage 1 | . 1 . Processor . | . . . Hackware . | . . . Protection . | . . . Artifact . | . . . Weapon 5 | . 2 3 Energy Gun 1 | . . 1 Energy Cannon . | . . . Ballistic Gun 3 | . 2 1 Ballistic Cannon . | . . . Launcher 1 | . . 1 Special Weapon . | . . . Impact Weapon . | . . . Slashing Weapon . | . . . Piercing Weapon . | . . . Special Melee Weapon . | . . . Unidentified Prototypes . | . . . Parts Lost 6 | . . 6 Power 1 | . . 1 Propulsion 2 | . . 2 Utility . | . . . Weapon 3 | . . 3 Highest Loss Streak 3 | . . 3 To Critical Strikes . | . . . Average Slot Usage (%) 94 | . 92 95 Engine 13 | . 14 12 Treads 19 | . 11 24 Leg 1 | . 5 . Wheel 5 | . 9 3 Storage 27 | . 26 28 Energy Gun 2 | . . 3 Ballistic Gun 21 | . 24 20 Launcher 1 | . . 2 Naked Turns . | . . . Heaviest Build 35 | 11 33 35 Greatest Support 40 | 20 40 40 Greatest Overweight (x) 1 | . 1 1 Average Overweight (x) . | . . . Largest Inventory Capacity 15 | 8 15 15 Average Capacity 14 | 8 13 15 Most Carried 15 | 7 13 15 Average Carried 9 | 6 8 10 Final Capacity 15 | 8 15 15 Final Carried 15 | 7 10 15 Class Distribution -------------------- 100% | Mutant Dominant Class ---------------- Mutant | -10/Materials Mutant | -10/Mines Resources | -11 -10 -10 ----------- Run | Jun Mat Min Matter Collected 537 | 228 55 254 Remotely . | . . . Salvage Created 323 | 12 119 192 Parts 11 | 2 6 3 Haulers Intercepted . | . . . Recyclers Shooed 4 | 1 1 2 Parts Field Recycled . | . . . Retrieved Matter . | . . . Parts Self-Destructed . | . . . Prevented . | . . . Kills | -11 -10 -10 ------- Run | Jun Mat Min Combat Hostiles Destroyed 14 | . 2 12 Guns 9 | . 2 7 AOE 5 | . . 5 Classes Destroyed 7 | 1 2 4 Worker 2 | . . 2 Builder 1 | . . 1 Tunneler 1 | 1 . . Recycler 1 | . . 1 Watcher 1 | . 1 . Grunt 2 | . 2 . Assembled 12 | . . 12 Best Kill Streak 8 | 1 2 8 Combat Bots Only 5 | . 2 5 Max Kills in Single Turn 3 | 1 1 3 Gunslinging 1 | . . 1 Exploded 2 | . . 2 Melee . | . . . Uniques/NPCs Destroyed . | . . . Combat | -11 -10 -10 -------- Run | Jun Mat Min Damage Taken 908 | . 138 770 Core 254 | . 53 201 Absorbed by Shields . | . . . Core Remaining (%) 100 | 100 . . Volleys Fired 73 | 7 16 50 Largest 2 | 2 2 2 Hottest 60 | 40 40 60 Shots Fired 112 | 14 32 66 Gun 106 | 14 32 60 Cannon . | . . . Launcher 6 | . . 6 Special . | . . . Kinetic 91 | 14 32 45 Thermal . | . . . Explosive 6 | . . 6 Electromagnetic 15 | . . 15 Robot Hit Streak 12 | 3 12 6 Robot Miss Streak 5 | 1 3 5 Penetration Max . | . . . Secondary Targets 1 | . . 1 Max Gunslinging Chain 1 | . . 1 Shots Hit Robots 57 | 9 18 30 Core Hits 38 | 3 7 28 Critical Kills . | . . . Critical Parts Destroyed 1 | . 1 . Critical Strikes 2 | . 1 1 Destroy 1 | . 1 . Corrupt 1 | . . 1 Melee Attacks . | . . . Impact . | . . . Slashing . | . . . Piercing . | . . . Sneak Attacks . | . . . Combat Hostiles . | . . . Follow-up Attacks . | . . . Damage Inflicted 984 | 90 205 689 Guns 629 | 90 205 334 Cannons . | . . . Explosions 355 | . . 355 Melee . | . . . Ramming . | . . . Kinetic 519 | 90 205 224 Thermal . | . . . Explosive 355 | . . 355 Electromagnetic 110 | . . 110 Impact . | . . . Slashing . | . . . Piercing . | . . . Highest Corruption . | . . . Average Corruption . | . . . Corruption Purged . | . . . Corruption Blocked . | . . . Overload Shots . | . . . Overflow Damage 30 | . . 30 Projectiles . | . . . Explosions 30 | . . 30 Melee . | . . . Knockbacks . | . . . Impact . | . . . Kinetic . | . . . Secondary . | . . . Self-Inflicted Damage 135 | . . 135 Shots 4 | . . 4 Rammed . | . . . Targets Rammed . | . . . Kicked . | . . . Crushed . | . . . Highest Temperature 40 | . 18 40 Average Temperature 26 | . 9 30 Received Heat Transfer 361 | . 81 280 Siege Activations . | . . . Robots Corrupted . | . . . Combat Hostiles . | . . . Parts Fried . | . . . Impact Corruptions . | . . . Robots Melted . | . . . Combat Hostiles . | . . . Parts Melted . | . . . Heat Transferred . | . . . Parts Sabotaged . | . . . Parts Stolen . | . . . Parts Stripped . | . . . Power Chain Reactions . | . . . Missiles Intercepted . | . . . Alert | -11 -10 -10 ------- Run | Jun Mat Min Peak Influence 65 | 5 65 46 Initial 25 | . 3 25 Average 25 | 2 31 25 Maximum Alert Level . | . . . Low Security (%) 100 | 100 100 100 Level 1 . | . . . Level 2 . | . . . Level 3 . | . . . Level 4 . | . . . Level 5 . | . . . High Security . | . . . Max Security . | . . . Squads Dispatched . | . . . Investigation . | . . . Extermination . | . . . Reinforcement . | . . . Assault . | . . . Garrison . | . . . Intercept . | . . . Searches Triggered . | . . . Construction Impeded . | . . . Haulers Reinforced . | . . . Active Scanning Responses . | . . . Cargo Convoy Interrupts . | . . . Stealth | -11 -10 -10 --------- Run | Jun Mat Min Distress Signals 1 | . . 1 Communications Jammed . | . . . Distress Signals . | . . . Times Spotted 25 | . 6 19 Peak Tracking Total 6 | . 2 6 Tactical Retreats 5 | . . 5 Traps | -11 -10 -10 ------- Run | Jun Mat Min Traps Triggered 2 | . 2 . Indirectly . | . . . Trap Hack Attempts . | . . . Triggered . | . . . Disarmed . | . . . Reprogrammed . | . . . Reused . | . . . Traps Extracted . | . . . Installed . | . . . Triggered . | . . . Machines | -11 -10 -10 ---------- Run | Jun Mat Min Machines Disabled 1 | . . 1 Max in Single Turn 1 | . . 1 Machines Repaired . | . . . Machines Sabotaged . | . . . Overloaded Fab Kills . | . . . Hacking | -11 -10 -10 --------- Run | Jun Mat Min Machines Accessed 1 | . 1 . Terminals 1 | . 1 . Fabricators . | . . . Repair Stations . | . . . Recycling Units . | . . . Scanalyzers . | . . . Garrison Access . | . . . Total Hacks 8 | . 8 . Successful 4 | . 4 . Failed 4 | . 4 . Catastrophic . | . . . Database Lockouts . | . . . Manual 7 | . 7 . Terminals 8 | . 8 . Fabricators . | . . . Repair Stations . | . . . Recycling Units . | . . . Scanalyzers . | . . . Garrison Access . | . . . Terminal Hacks 3 | . 3 . Robot Analysis 2 | . 2 . Prototype ID Bank 1 | . 1 . Fabricator Hacks . | . . . Repair Station Hacks . | . . . Recycling Unit Hacks . | . . . Scanalyzer . | . . . Garrison Access Hacks . | . . . Unauthorized Hacks 1 | . 1 . Terminals 1 | . 1 . Botnet 1 | . 1 . Fabricators . | . . . Repair Stations . | . . . Recycling Units . | . . . Scanalyzers . | . . . Garrison Access . | . . . Data Cores Recovered . | . . . Used . | . . . Hacking Detections 1 | . 1 . Full Trace Events . | . . . Feedback Events . | . . . Feedback Blocked . | . . . Robot Schematics Acquired . | . . . Robots Built . | . . . Authchips . | . . . Time . | . . . Total Robot Build Rating . | . . . Part Schematics Acquired . | . . . Parts Built . | . . . Authchips . | . . . Time . | . . . Total Part Build Rating . | . . . Parts Repaired . | . . . Time . | . . . Parts Recycled . | . . . Recycled Matter . | . . . Retrieved Matter . | . . . Retrieved Components . | . . . Parts Scanalyzed . | . . . Part Schematics Acquired . | . . . Parts Damaged . | . . . Bothacking | -11 -10 -10 ------------ Run | Jun Mat Min Used RIF Installer . | . . . Robots Hacked . | . . . Non-combat . | . . . Combat . | . . . Robot Hacks Applied . | . . . Relay Couplers Released . | . . . Fabnet Peak Effective % . | . . . Robots Rewired . | . . . Allies Hacked . | . . . Hacks Repelled . | . . . Allies | -11 -10 -10 -------- Run | Jun Mat Min Total Allies . | . . . Largest Group . | . . . Highest-Rated Group . | . . . Highest-Rated Ally . | . . . Total Orders . | . . . Ally Attacks . | . . . Total Damage . | . . . Kills . | . . . Allies Corrupted . | . . . Allies Melted . | . . . Intel | -11 -10 -10 ------- Run | Jun Mat Min Robot Analysis Total 2 | . 2 . Derelict Logs Recovered 1 | . . 1 Drone Launches . | . . . Drone Recoveries . | . . . Exploration | -11 -10 -10 ------------- Run | Jun Mat Min Turns Passed 628 | 40 209 379 Spaces Moved 268 | 9 108 151 Core . | . . . Treads 159 | . 34 125 Legs 37 | 9 28 . Wheels 72 | . 46 26 Hover . | . . . Flight . | . . . Fastest Speed 90 | 120 105 90 Average Speed 142 | 120 132 150 Slowest Speed 240 | 120 240 160 Overloaded Moves . | . . . Propulsion Burnouts . | . . . Robots Hopped . | . . . Cave-ins Triggered . | . . . Exploration Rate (%) 22 | 2 29 36 Regions Visited 2 Branch Regions 1 Pre-discovered Areas 1 | . . 1 Known Exits Taken . | . . . Unknown Exits Taken 2 | 1 1 . Scrap Searched . | . . . Spaces Dug . | . . . Terrain Destroyed 59 | . . 59 Melee . | . . . Projectile . | . . . AOE 59 | . . 59 Terrain Rammed . | . . . Walls Destroyed . | . . . Machines Disabled . | . . . Actions | -11 -10 -10 --------- Run | Jun Mat Min Total 409 | 25 142 242 Wait 40 | 9 4 27 Move 266 | 8 107 151 Hop . | . . . Pick Up 16 | 1 6 9 Fast Attach 1 | . 1 . Attach 7 | . 3 4 Detach . | . . . Swap 6 | . 5 1 Drop . | . . . Fire 73 | 7 16 50 Melee . | . . . Ram . | . . . Kick . | . . . Crush . | . . . Escape Stasis . | . . . Rewire . | . . . Trap . | . . . Miscellaneous . | . . . Route ------- -11/Junkyard -10/Materials -10/Mines History --------- Turn | Location | Event 24 | -11/Junkyard | Discovered new exit (range 3) 41 | -11/Junkyard | Entered Materials 228 | -10/Materials | Discovered new exit (range 7) 250 | -10/Materials | Entered Mines 257 | -10/Mines | Received a Rocket Launcher from a helpful Derelict 300 | -10/Mines | Learned location of Storage (-7) 313 | -10/Mines | Build established: Mutant 378 | -10/Mines | Learned Materials machine intel 389 | -10/Mines | Assembled infested the area 394 | -10/Mines | Assisted by a Guerilla fighting off Assembled 538 | -10/Mines | Core integrity fell below 50% 576 | -10/Mines | Core integrity fell below 20% 611 | -10/Mines | Lost 3 parts (1p2n) 629 | -10/Mines | Destroyed by as-44980 with Assembled F-torch Last Messages --------------- 00589_ Acquired Imp. Light Armor Plating. 00590_ Acquired 30 matter. 00591_ Acquired 76 matter. 00592_ The unstable cave ceiling collapses. 00592_ Acquired 34 matter. 00595_ Acquired Cmb. Airjet. 00596_ Acquired 71 matter. 00596_ K-01 Serf collects debris. 00599_ Acquired Cmb. Airjet. 00600_ The unstable cave ceiling collapses. 00600_ Acquired 11 matter. 00602_ Acquired Imp. Light Armor Plating. 00604_ Acquired Cmb. Airjet. 00606_ The unstable cave ceiling collapses. 00606_ Acquired Wheel. 00613_ Acquired Armor Integrity Analyzer. 00615_ Acquired Fission Core. 00619_ Core Extractor disabled. 00619_ Rocket Launcher destroyed. 00619_ Destroyed Rocket Launcher. Map ----- +----------------------------------------------------+ | | | | | | | | | | | | | | | | | | | | | | | | | | | ????????????????????????????????????????????? | | ??????????????????????????##????????????????? | | ????????????????????????## ##??????????????? | | ????????????????????????# ##?????????????? | | ????????????????????????# #?????????????? | | ??????????????????####??# #?????????????? | | ?????????????????## #### #?????????????? | | ????????????????## ## #??????????????? | | ?????????#??????# #????????####???? | | ????????## ?????# #???????? #???? | | ???????## ?????# ##???????# #???? | | ??????## ????#%! #####???# #???? | | ?????## #?###=!@ a ##### #???? | | ?????# ##;=%# *%= #???? | | ?????# ## # ##### #???? | | ??????# = !######### ### ##???# ##### | | ??????### %%= ###???# #?####????# | | ????????#; ## # #???# #?????????##### | | ????????#" #?### ###??# #?????????????# | | ????????## ???# *%! #??# #????????????## | | ?????????# ????## !##??# #??????????### | | ????????# ??????# % =#??# #?????????## | | ???????# ??????###%=##??# #?????????# | | ??????? ?????????#! #???# #?????????## | | ?????? ??????????#= #???# #??????????## | | ??????? ? ????????#= #???# #???????????## | | ??????????#*%#######! ##### #????????????## | | ??????????# = = # ##????????????## | | ??????????# ##????????????# | | ??????????####### #????????????# | | ???????????????# % ##????????????## | | ???????????????# #??????????????# | | ???????????????# # # #??????????????? | | ???????????????# % # ####??????????????? | | ????????????# %#####?????????????????? | | ????????????# ????????????????????? | | ????????????# # # $????????????????????? | +----------------------------------------------------+ Best States ------------- Heat Dissipation 25 Energy Generation 10 Energy Capacity 250 Matter Stores 300 Matter Capacity 300 Sight Range 16 Terrain Scan Density 10 Evasion (%) 55 Recoil Reduction 2 Item Schematics ----------------- None Robot Schematics ------------------ None Fabricated ------------ Nothing Alien Tech Used ----------------- None Achievements -------------- None Challenges ------------ None Game ------ Seed AerolevGammaStick Manual? 0 Play Time 00:09:48 Cumulative 441.3 hours Start 2023.03.10 @ 17:45:14 End 2023.03.10 @ 17:51:31 Sessions 1 Manual Loads 0 Difficulty Rogue Special Mode None Game No. 497 Rogue 497 Adventurer 0 Explorer 0 Win Type - Total 0 Types 0/0/0/0/0/0/0/0/0 Lore% 59 Gallery% 79 Achievement% 64 Wizard Run 0 Options --------- ASCII 0 Keyboard 0 Movement Mouse Keybinds 0 Fullscreen 2 Font 24/Smallcaps Map View 76x50 Tactical HUD 1 Map Filters NONE Filters NONE Steam 1 RUN: e882200f-2ec7-4e4d-b1ab-8071423a2cd6